fUST/lending_fUST_20250718
["ID","MTS","AMOUNT","RATE_DAILY","PERIOD"]
[373018189,1752841843716,-530.47071702,0.00024412,3]
[373018191,1752841843725,-160.0,0.00024412,3]
[373018193,1752841843735,-160.0,0.00024412,3]
[373018196,1752841843745,-160.0,0.00024412,3]
[373018198,1752841843755,-160.0,0.00024412,3]
[373018199,1752841843764,-160.93346759,0.00024412,3]
[373018201,1752841843774,-324.0,0.00024412,3]
[373018204,1752841843783,-324.0,0.00024412,3]
[373018206,1752841843793,-324.0,0.00024412,3]
[373018208,1752841843803,-324.0,0.00024412,3]
[373018210,1752841843813,-324.0,0.00024412,3]
[373018212,1752841843823,-324.0,0.00024412,3]
[373018213,1752841843832,-324.0,0.00024412,3]
[373018215,1752841843842,-324.0,0.00024412,3]
[373018218,1752841843851,-278.54510186,0.00024412,3]
[373018220,1752841843861,-154.0,0.00024412,3]
[373018221,1752841843871,-2353.12,0.00024434,7]
[373018223,1752841843882,-150.92781,0.00024445,10]
[373018226,1752841843893,-767.43374486,0.00024452,11]
[373018227,1752841843903,-163.98184823,0.00024466,2]
[373018230,1752841843912,-961.60473553,0.00024468,2]
[373018232,1752841843923,-151.0,0.000245,6]
[373018234,1752841843934,-1973.524237,0.000245,2]
[373018236,1752841843944,-160.0,0.000245,3]
[373018238,1752841843954,-525.75194068,0.000245,3]
[373018240,1752841843964,-214.4881157,0.000245,3]
[373018242,1752841843978,-160.0,0.000245,3]
[373018244,1752841843988,-331.33046,0.00024508,7]
[373018247,1752841843998,-25000.0,0.00024509,2]
[373018248,1752841844008,-150.92781,0.00024518,8]
[373018251,1752841844018,-402.936892,0.00024521,2]
[373018253,1752841844027,-2353.12,0.00024534,5]
[373018255,1752841844038,-186.988576,0.00024542,7]
[373018257,1752841844047,-151.0,0.00024542,7]
[373018259,1752841844057,-206.0,0.0002456,2]
[373018261,1752841844066,-1029.71219569,0.00024625,2]
[373018263,1752841844076,-151.0,0.00024627,7]
[373018265,1752841844088,-2353.12,0.00024634,7]
[373018267,1752841844097,-150.92781,0.00024641,9]
[373018269,1752841844108,-800.0,0.00024641,2]
[373018271,1752841844118,-1523.49574857,0.0002465,2]
[373018273,1752841844127,-6087.88901129,0.0002465,2]
[373018275,1752841844137,-4619.31525862,0.0002465,2]
[373018277,1752841844147,-21135.0244681,0.0002465,2]
[373018278,1752841844157,-151.0,0.0002465,7]
[373018280,1752841844166,-1019.620488,0.0002465,7]
[373018283,1752841844176,-1019.620488,0.0002465,7]
[373018285,1752841844186,-151.0,0.0002465,7]
[373018287,1752841844196,-151.0,0.0002465,7]
[373018289,1752841844206,-153.0,0.00024658,2]
[373018291,1752841844216,-153.0,0.00024658,2]
[373018292,1752841844226,-153.0,0.00024658,2]
[373018295,1752841844236,-178.0805666,0.00024658,2]
[373018297,1752841844245,-153.0,0.00024658,2]
[373018299,1752841844255,-159.7855054,0.00024658,2]
[373018301,1752841844265,-159.7855054,0.00024658,2]
[373018303,1752841844274,-178.0805666,0.00024658,2]
[373018305,1752841844284,-178.0805666,0.00024658,2]
[373018307,1752841844294,-159.6791774,0.00024658,2]
[373018309,1752841844303,-153.0,0.00024658,2]
[373018311,1752841844314,-153.0,0.00024658,2]
[373018313,1752841844323,-153.0,0.00024658,2]
[373018315,1752841844333,-153.0,0.00024658,2]
[373018317,1752841844343,-500.0,0.00024658,2]
[373018319,1752841844354,-23819.61453415,0.00024666,2]
[373018343,1752841844586,-843.51,0.00016899,2]
[373018345,1752841844596,-460.0,0.00017,2]
[373018347,1752841844606,-843.51,0.00017173,2]
[373018349,1752841844616,-460.0,0.00017274,2]
[373018351,1752841844626,-843.51,0.00017447,2]
[373018353,1752841844637,-843.51,0.00017721,2]
[373018356,1752841844647,-160.0,0.00020807,2]
[373018370,1752841844772,-2499.96,0.00024666,2]
[373018387,1752841844934,-460.0,0.00016899,2]
[373018389,1752841844944,-460.0,0.00017272,2]
[373018391,1752841844954,-460.0,0.00017546,2]
[373018393,1752841844964,-290.3,0.0001782,2]
[373018395,1752841844974,-843.51,0.00017995,2]
[373018397,1752841844984,-366.47,0.00018269,2]
[373018421,1752841845145,-460.0,0.00017,2]
[373018423,1752841845154,-460.0,0.00017,2]
[373018425,1752841845163,-460.0,0.00017272,2]
[373018427,1752841845173,-460.0,0.00017546,2]
[373018429,1752841845184,-477.04,0.00018269,2]
[373018431,1752841845193,-843.51,0.00018543,2]
[373018433,1752841845202,-843.51,0.00018817,2]
[373018435,1752841845212,-843.51,0.00019091,2]
[373018437,1752841845222,-843.51,0.00019365,2]
[373018439,1752841845231,-843.51,0.00019639,2]
[373018441,1752841845241,-843.51,0.00019913,2]
[373018443,1752841845251,-843.51,0.00020187,2]
[373018445,1752841845260,-843.51,0.00020461,2]
[373018447,1752841845270,-843.51,0.00020735,2]
[373018449,1752841845280,-160.0,0.00020807,2]
[373018451,1752841845289,-160.0,0.00020807,2]
[373018454,1752841845309,-160.0,0.00020807,2]
[373018456,1752841845320,-12610.43989422,0.00020807,2]
[373018459,1752841845330,-843.51,0.00021009,2]
[373018461,1752841845340,-843.51,0.00021283,2]
[373018463,1752841845350,-843.51,0.00021557,2]
[373018465,1752841845360,-100632.90573047,0.00024666,2]
[373021623,1752841878298,150.0,0.00015885,2]
[373025220,1752842271831,-300.0,0.00016897,2]
[373025221,1752842271854,-460.0,0.00016898,2]
[373025222,1752842271875,-460.0,0.00016898,2]
[373025223,1752842271896,-480.0,0.00016898,2]
[373025224,1752842271918,-373.12871714,0.00016898,2]
[373025225,1752842271940,-460.0,0.00016898,2]
[373025226,1752842271962,-460.0,0.00016898,2]
[373025227,1752842271984,-460.0,0.00016898,2]
[373025228,1752842272006,-460.0,0.00016898,2]
[373025229,1752842272029,-520.87128286,0.00016898,2]
[373025230,1752842305747,878.9,0.00015974,2]
[373025231,1752842383402,150.0,0.00015806,2]
[373025232,1752842454792,150.0,0.00015347,2]
[373025234,1752842596287,277.194803,0.00013699,2]
[373025235,1752842734951,-150.0,0.00016742,2]
[373025236,1752842734974,-512.21744606,0.00016799,2]
[373025237,1752842734997,-300.0,0.00016896,2]
[373025238,1752842735020,-252.96299238,0.00016896,2]
[373025239,1752842806571,150.0,0.00015327,2]
[373025240,1752842832094,-382.66635923,0.00016553,2]
[373025241,1752842832116,-156.96924887,0.00016673,2]
[373025242,1752842832138,-156.96924885,0.00016715,2]
[373025243,1752842832161,-981.56283912,0.00016727,2]
[373025244,1752842832183,-156.96924885,0.00016756,2]
[373025245,1752842832205,-156.96924885,0.00016798,2]
[373025246,1752842832232,-500.0,0.00016873,2]
[373025247,1752842832253,-500.0,0.00016873,2]
[373025248,1752842832277,-300.0,0.00016895,2]
[373025249,1752842832300,-300.0,0.00016896,2]
[373025250,1752842832322,-196.0,0.00016896,2]
[373025251,1752842832344,-596.0,0.00016896,2]
[373025252,1752842832366,-1200.0,0.00016896,2]
[373025253,1752842832389,-227.41063547,0.00016897,2]
[373025254,1752842832410,-460.0,0.00016897,2]
[373025255,1752842832431,-460.0,0.00016897,2]
[373025256,1752842832452,-460.0,0.00016897,2]
[373025257,1752842832474,-460.0,0.00016897,2]
[373025258,1752842832637,-460.0,0.00016897,2]
[373025259,1752842832660,-460.0,0.00016897,2]
[373025260,1752842832685,-394.1354618,0.00016897,2]
[373025261,1752842851093,-65.8645382,0.00016897,2]
[373025262,1752842851113,-155.93790864,0.00016897,2]
[373025263,1752842851136,-929.30946442,0.00016897,2]
[373025264,1752842857980,646.9579158,0.00015924,2]
[373025265,1752842971299,2181.9005249,0.00016024,2]
[373025266,1752842996226,199.4134281,0.00015894,2]
[373025267,1752843005156,5230.4360226,0.00015894,2]
[373025268,1752843006691,157.23740772,7.5e-07,2]
[373025269,1752843006807,157.23740772,7.5e-07,2]
[373025270,1752843006940,157.23740772,7.5e-07,2]
[373025271,1752843007058,157.23740772,7.5e-07,2]
[373025272,1752843007166,157.23740772,7.5e-07,2]
[373025273,1752843007506,157.23740772,7.5e-07,2]
[373025274,1752843007698,157.23740772,7.5e-07,2]
[373025275,1752843007804,157.23740772,7.5e-07,2]
[373025276,1752843007947,157.23740772,7.5e-07,2]
[373025343,1752843032253,-202.27495818,0.00016642,2]
[373025345,1752843032263,-362.68103183,0.00016697,2]
[373025347,1752843032273,-313.94400999,0.00016797,2]
[373025349,1752843032285,-267.79149872,0.00016797,2]
[373025351,1752843032295,-362.68103183,0.00016798,2]
[373025353,1752843032305,-500.0,0.00016873,2]
[373025355,1752843032314,-500.0,0.00016873,2]
[373025357,1752843032323,-740.26,0.00016889,3]
[373025359,1752843032332,-370.13,0.00016889,3]
[373025361,1752843032342,-185.07,0.00016889,3]
[373025363,1752843032351,-555.22,0.00016889,3]
[373025365,1752843032360,-548.34,0.0001689,3]
[373025367,1752843032370,-1200.0,0.00016894,2]
[373025369,1752843032379,-300.0,0.00016895,2]
[373025371,1752843032388,-300.0,0.00016895,2]
[373025372,1752843032397,-300.0,0.00016895,2]
[373025374,1752843032407,-249.34440262,0.00016895,2]
[373025392,1752843032498,-50.65559738,0.00016895,2]
[373025396,1752843032508,-300.0,0.00016895,2]
[373025400,1752843032517,-365.76695277,0.00016896,2]
[373025406,1752843032533,-94.23304723,0.00016896,2]
[373025409,1752843032542,-460.0,0.00016896,2]
[373025413,1752843032552,-460.0,0.00016896,2]
[373025416,1752843032560,-460.0,0.00016896,2]
[373025418,1752843032569,-460.0,0.00016896,2]
[373025420,1752843032578,-460.0,0.00016896,2]
[373025423,1752843032587,-460.0,0.00016896,2]
[373025426,1752843032596,-8439.38336376,0.00016897,2]
[373025429,1752843032605,-460.0,0.00016897,2]
[373025432,1752843032614,-460.0,0.00016897,2]
[373025435,1752843032624,-3824.65,0.00016897,2]
[373025438,1752843032633,-460.0,0.00016897,2]
[373025441,1752843032643,-460.0,0.00016897,2]
[373025463,1752843032776,-460.0,0.00016897,2]
[373025465,1752843032786,-460.0,0.00016897,2]
[373025467,1752843032795,-2897.47,0.00016897,2]
[373025469,1752843032806,-460.0,0.00016897,2]
[373025471,1752843032815,-619.84,0.00016897,2]
[373025473,1752843032825,-460.0,0.00016897,2]
[373025475,1752843032834,-415.59073771,0.00016897,2]
[373025477,1752843032843,-460.0,0.00016897,2]
[373025479,1752843032852,-460.0,0.00016897,2]
[373025481,1752843032862,-460.0,0.00016897,2]
[373025484,1752843032871,-460.0,0.00016897,2]
[373025486,1752843032886,-1832.88,0.00016897,2]
[373025487,1752843032896,-1860.42,0.00016897,2]
[373025489,1752843032905,-500.0,0.00016897,2]
[373025492,1752843032914,-500.0,0.00016897,2]
[373025493,1752843032925,-500.0,0.00016897,2]
[373025496,1752843032934,-500.0,0.00016897,2]
[373025498,1752843032943,-500.0,0.00016897,2]
[373025500,1752843032954,-500.0,0.00016897,2]
[373025502,1752843032963,-500.0,0.00016897,2]
[373025503,1752843032974,-500.0,0.00016897,2]
[373025505,1752843032983,-500.0,0.00016897,2]
[373025507,1752843032993,-500.0,0.00016897,2]
[373025509,1752843033002,-500.0,0.00016897,2]
[373025511,1752843033011,-500.0,0.00016897,2]
[373025513,1752843033021,-500.0,0.00016897,2]
[373025516,1752843033031,-500.0,0.00016897,2]
[373025518,1752843033041,-500.0,0.00016897,2]
[373025520,1752843033051,-500.0,0.00016897,2]
[373025522,1752843033061,-500.0,0.00016897,2]
[373025524,1752843033070,-500.0,0.00016897,2]
[373025526,1752843033080,-500.0,0.00016897,2]
[373025528,1752843033089,-500.0,0.00016897,2]
[373025530,1752843033099,-500.0,0.00016897,2]
[373025532,1752843033108,-500.0,0.00016897,2]
[373025534,1752843033118,-379.74626761,0.00016897,2]
[373025535,1752843033128,-500.0,0.00016897,2]
[373025537,1752843033137,-500.0,0.00016897,2]
[373025540,1752843033147,-397.52180127,0.00016897,2]
[373025542,1752843033156,-500.0,0.00016897,2]
[373025543,1752843033166,-500.0,0.00016897,2]
[373025546,1752843033175,-399.92987286,0.00016897,2]
[373025547,1752843033185,-500.0,0.00016897,2]
[373025550,1752843033194,-500.0,0.00016897,2]
[373025552,1752843033205,-500.0,0.00016897,2]
[373025553,1752843033214,-500.0,0.00016897,2]
[373025556,1752843033224,-500.0,0.00016897,2]
[373025558,1752843033234,-500.0,0.00016897,2]
[373025559,1752843033243,-500.0,0.00016897,2]
[373025561,1752843033252,-500.0,0.00016897,2]
[373025563,1752843033262,-500.0,0.00016897,2]
[373025565,1752843033271,-517.02956955,0.00016897,2]
[373025568,1752843033281,-500.0,0.00016897,2]
[373025569,1752843033290,-327.2610647,0.00016897,2]
[373025571,1752843033300,-500.0,0.00016897,2]
[373025574,1752843033310,-500.0,0.00016897,2]
[373025575,1752843033319,-500.0,0.00016897,2]
[373025577,1752843033329,-500.0,0.00016897,2]
[373025580,1752843033339,-500.0,0.00016897,2]
[373025582,1752843033348,-500.0,0.00016897,2]
[373025583,1752843033357,-500.0,0.00016897,2]
[373025585,1752843033366,-500.0,0.00016897,2]
[373025588,1752843033377,-500.0,0.00016897,2]
[373025590,1752843033386,-500.0,0.00016897,2]
[373025592,1752843033396,-500.0,0.00016897,2]
[373025594,1752843033406,-500.0,0.00016897,2]
[373025596,1752843033415,-500.0,0.00016897,2]
[373025598,1752843033424,-500.0,0.00016897,2]
[373025599,1752843033433,-500.0,0.00016897,2]
[373025601,1752843033442,-500.0,0.00016897,2]
[373025603,1752843033452,-500.0,0.00016897,2]
[373025605,1752843033461,-500.0,0.00016897,2]
[373025608,1752843033471,-253.52744852,0.00016897,2]
[373025610,1752843033481,-360.4361446,0.00016897,2]
[373025612,1752843033490,-473.83894831,0.00016897,2]
[373025614,1752843033500,-500.0,0.00016897,2]
[373025615,1752843033510,-500.0,0.00016897,2]
[373025618,1752843033519,-500.0,0.00016897,2]
[373025620,1752843033529,-500.0,0.00016897,2]
[373025622,1752843033539,-500.0,0.00016897,2]
[373025624,1752843033549,-500.0,0.00016897,2]
[373025626,1752843033558,-593.74010831,0.00016897,2]
[373025628,1752843033567,-500.0,0.00016897,2]
[373025630,1752843033577,-500.0,0.00016897,2]
[373025632,1752843033587,-500.0,0.00016897,2]
[373025634,1752843033596,-500.0,0.00016897,2]
[373025636,1752843033606,-500.0,0.00016897,2]
[373025638,1752843033616,-500.0,0.00016897,2]
[373025640,1752843033626,-500.0,0.00016897,2]
[373025642,1752843033636,-500.0,0.00016897,2]
[373025644,1752843033645,-460.0,0.00016897,2]
[373025646,1752843033654,-384.30151361,0.00016897,2]
[373025648,1752843033663,-460.0,0.00016897,2]
[373025650,1752843033673,-1589.36,0.00016897,2]
[373025652,1752843033682,-460.0,0.00016897,2]
[373025654,1752843033692,-460.0,0.00016897,2]
[373025656,1752843033702,-460.0,0.00016897,2]
[373025658,1752843033712,-460.0,0.00016897,2]
[373025660,1752843033722,-1487.84,0.00016897,2]
[373025662,1752843033731,-460.0,0.00016897,2]
[373025664,1752843033743,-460.0,0.00016897,2]
[373025666,1752843033753,-452.01544478,0.00016897,2]
[373025669,1752843033762,-460.0,0.00016897,2]
[373025671,1752843033783,-460.0,0.00016897,2]
[373025673,1752843033794,-460.0,0.00016897,2]
[373025675,1752843033803,-409.2036442,0.00016897,2]
[373025677,1752843033812,-460.0,0.00016897,2]
[373025679,1752843033821,-520.78,0.00016897,2]
[373025682,1752843033832,-460.0,0.00016898,2]
[373025684,1752843033843,-460.0,0.00016898,2]
[373025686,1752843033852,-460.0,0.00016898,2]
[373025688,1752843033861,-460.0,0.00016898,2]
[373025689,1752843033871,-460.0,0.00016898,2]
[373025691,1752843033885,-460.0,0.00016898,2]
[373025693,1752843033895,-460.0,0.00016898,2]
[373025696,1752843033905,-460.0,0.00016898,2]
[373025697,1752843033915,-460.0,0.00016898,2]
[373025700,1752843033926,-460.0,0.00016898,2]
[373025702,1752843033936,-460.0,0.00016898,2]
[373025703,1752843033946,-500.0,0.00016898,2]
[373025705,1752843033957,-500.0,0.00016898,2]
[373025706,1752843033967,-460.0,0.00016898,2]
[373025708,1752843033977,-460.0,0.00016898,2]
[373025710,1752843033986,-460.0,0.00016898,2]
[373025712,1752843033996,-460.0,0.00016898,2]
[373025714,1752843034006,-460.0,0.00016898,2]
[373025716,1752843034016,-460.0,0.00016898,2]
[373025718,1752843034025,-460.0,0.00016898,2]
[373025719,1752843034035,-651.97,0.00016898,2]
[373025721,1752843034045,-460.0,0.00016898,2]
[373025723,1752843034055,-460.0,0.00016898,2]
[373025725,1752843034065,-460.0,0.00016898,2]
[373025727,1752843034074,-460.0,0.00016898,2]
[373025728,1752843034084,-460.0,0.00016898,2]
[373025729,1752843034096,-460.0,0.00016898,2]
[373025730,1752843034107,-460.0,0.00016898,2]
[373025732,1752843034117,-460.0,0.00016898,2]
[373025734,1752843034127,-460.0,0.00016898,2]
[373025736,1752843034137,-468.82013282,0.00016898,2]
[373025738,1752843034148,-784.83,0.00016898,2]
[373025740,1752843034158,-460.0,0.00016898,2]
[373025742,1752843034167,-460.0,0.00016898,2]
[373025744,1752843034177,-460.0,0.00016898,2]
[373025746,1752843034187,-460.0,0.00016898,2]
[373025748,1752843034197,-460.0,0.00016898,2]
[373025750,1752843034208,-460.0,0.00016898,2]
[373025752,1752843034219,-460.0,0.00016898,2]
[373025754,1752843034229,-460.0,0.00016898,2]
[373025756,1752843034240,-460.0,0.00016898,2]
[373025758,1752843034249,-460.0,0.00016898,2]
[373025760,1752843034259,-460.0,0.00016898,2]
[373025762,1752843034270,-460.0,0.00016898,2]
[373025764,1752843034279,-460.0,0.00016898,2]
[373025766,1752843034290,-460.0,0.00016898,2]
[373025768,1752843034300,-460.0,0.00016898,2]
[373025770,1752843034311,-460.0,0.00016898,2]
[373025773,1752843034323,-715.73,0.00016898,2]
[373025775,1752843034333,-460.0,0.00016898,2]
[373025777,1752843034343,-460.0,0.00016898,2]
[373025779,1752843034353,-460.0,0.00016898,2]
[373025781,1752843034362,-460.0,0.00016898,2]
[373025783,1752843034372,-460.0,0.00016898,2]
[373025784,1752843034382,-460.0,0.00016898,2]
[373025787,1752843034396,-3979.79,0.00016898,2]
[373025789,1752843034406,-460.0,0.00016898,2]
[373025791,1752843034416,-460.0,0.00016898,2]
[373025793,1752843034426,-460.0,0.00016898,2]
[373025795,1752843034436,-460.0,0.00016898,2]
[373025797,1752843034445,-460.0,0.00016898,2]
[373025799,1752843034456,-460.0,0.00016898,2]
[373025801,1752843034465,-460.0,0.00016898,2]
[373025803,1752843034475,-460.0,0.00016898,2]
[373025805,1752843034485,-504.97,0.00016898,2]
[373025807,1752843034495,-460.0,0.00016898,2]
[373025809,1752843034505,-460.0,0.00016898,2]
[373025811,1752843034515,-711.59,0.00016898,2]
[373025813,1752843034525,-761.05,0.00016898,2]
[373025815,1752843034534,-562.72162882,0.00016899,2]
[373025817,1752843034544,-460.0,0.00016899,2]
[373025819,1752843034554,-460.0,0.00016899,2]
[373025821,1752843034564,-460.0,0.00016899,2]
[373025823,1752843034573,-460.0,0.00016899,2]
[373025825,1752843034583,-596.30646389,0.00016899,2]
[373025827,1752843034592,-460.0,0.00016899,2]
[373025829,1752843034602,-460.0,0.00016899,2]
[373025831,1752843034612,-466.99532585,0.00016899,2]
[373025833,1752843034623,-155.20813426,0.00016899,2]
[373025850,1752843034782,-304.79186574,0.00016899,2]
[373025852,1752843034792,-198.51874405,0.00016899,2]
[373025854,1752843034802,-460.0,0.00016899,2]
[373025856,1752843034813,-460.0,0.00016899,2]
[373025858,1752843034822,-460.0,0.00016899,2]
[373025860,1752843034831,-460.0,0.00016899,2]
[373025862,1752843034841,-469.86368413,0.00016899,2]
[373025864,1752843034851,-460.0,0.00016899,2]
[373025867,1752843034861,-460.0,0.00016899,2]
[373025869,1752843034871,-460.0,0.00016899,2]
[373025870,1752843034886,-460.0,0.00016899,2]
[373025873,1752843034896,-460.0,0.00016899,2]
[373025875,1752843034906,-460.0,0.00016899,2]
[373025877,1752843034915,-460.0,0.00016899,2]
[373025879,1752843034926,-460.0,0.00016899,2]
[373025881,1752843034935,-460.0,0.00016899,2]
[373025883,1752843034944,-460.0,0.00016899,2]
[373025885,1752843034956,-460.0,0.00016899,2]
[373025887,1752843034966,-460.0,0.00016899,2]
[373025889,1752843034976,-460.0,0.00016899,2]
[373025891,1752843034986,-460.0,0.00016899,2]
[373025893,1752843034995,-460.0,0.00016899,2]
[373025895,1752843035004,-460.0,0.00016899,2]
[373025897,1752843035014,-460.0,0.00016899,2]
[373025899,1752843035024,-2901.69442479,0.00016899,2]
[373026151,1752843038259,-147.09557521,0.00016899,2]
[373026153,1752843038269,-460.0,0.00016899,2]
[373026155,1752843038279,-423.89659805,0.00016899,2]
[373026157,1752843038289,-460.0,0.00016899,2]
[373026158,1752843038299,-460.0,0.00016899,2]
[373026160,1752843038308,-142.63339426,0.00016899,2]
[373026163,1752843038321,-317.36660574,0.00016899,2]
[373026165,1752843038331,-460.0,0.00016899,2]
[373026167,1752843038340,-460.0,0.00016899,2]
[373026169,1752843038350,-201.07119105,0.00016899,2]
[373026171,1752843038362,-892.44880895,0.00016899,2]
[373026173,1752843038372,-82.13578755,0.00016899,2]
[373026175,1752843038384,-377.86421245,0.00016899,2]
[373026177,1752843038394,-460.0,0.00016899,2]
[373026179,1752843038403,-460.0,0.00016899,2]
[373026181,1752843038413,-460.0,0.00016899,2]
[373026184,1752843038423,-460.0,0.00016899,2]
[373026186,1752843038433,-460.0,0.00016899,2]
[373026188,1752843038442,-460.0,0.00016899,2]
[373026190,1752843038452,-460.0,0.00016899,2]
[373026192,1752843038463,-594.21071822,0.00016899,2]
[373026194,1752843038472,-460.0,0.00016899,2]
[373026196,1752843038483,-460.0,0.00016899,2]
[373026198,1752843038493,-460.0,0.00016899,2]
[373026200,1752843038503,-539.85793514,0.00016899,2]
[373026202,1752843038513,-460.0,0.00016899,2]
[373026205,1752843038522,-460.0,0.00016899,2]
[373026207,1752843038532,-460.0,0.00016899,2]
[373026209,1752843038542,-460.0,0.00016899,2]
[373026212,1752843038551,-460.0,0.00016899,2]
[373026214,1752843038561,-460.0,0.00016899,2]
[373026216,1752843038570,-460.0,0.00016899,2]
[373026218,1752843038579,-460.0,0.00016899,2]
[373026220,1752843038590,-3843.33310689,0.00016899,2]
[373026222,1752843038601,-460.0,0.00016899,2]
[373026224,1752843038611,-460.0,0.00016899,2]
[373026226,1752843038620,-460.0,0.00016899,2]
[373026228,1752843038630,-7116.78520937,0.00016899,2]
[373026230,1752843038639,-460.0,0.00016899,2]
[373026232,1752843038648,-460.0,0.00016899,2]
[373026234,1752843038658,-460.0,0.00016899,2]
[373026236,1752843038667,-460.0,0.00016899,2]
[373026239,1752843038677,-362.68103183,0.00016899,2]
[373026241,1752843038686,-460.0,0.00016899,2]
[373026242,1752843038696,-83885.00205811,0.000169,2]
[373026623,1752843042336,-996.18358789,0.000169,2]
[373026628,1752843042374,-3014.98636825,0.000169,2]
[373026630,1752843042389,-282103.82798575,0.000169,2]
[373026642,1752843042399,-460.0,0.00016999,2]
[373026644,1752843042503,-460.0,0.00016999,2]
[373026646,1752843042512,-462.39463851,0.00016999,2]
[373026649,1752843042522,-500.0,0.00016999,2]
[373026650,1752843042532,-460.0,0.00017,2]
[373026652,1752843042544,-460.0,0.00017,2]
[373026654,1752843042555,-460.0,0.00017,2]
[373026656,1752843042565,-460.0,0.00017,2]
[373026659,1752843042575,-460.0,0.00017,2]
[373026660,1752843042587,-460.0,0.00017,2]
[373026662,1752843042596,-460.0,0.0001717,2]
[373026664,1752843042606,-460.0,0.0001717,2]
[373026666,1752843042615,-460.0,0.0001717,2]
[373026668,1752843042624,-460.0,0.0001717,2]
[373026670,1752843042634,-460.0,0.0001717,2]
[373026673,1752843042644,-500.0,0.00017171,2]
[373026675,1752843042653,-500.0,0.00017171,2]
[373026677,1752843042662,-460.0,0.00017171,2]
[373026679,1752843042671,-3824.65,0.00017171,2]
[373026681,1752843042681,-460.0,0.00017171,2]
[373026683,1752843042691,-460.0,0.00017171,2]
[373026686,1752843042700,-2897.47,0.00017171,2]
[373026688,1752843042709,-460.0,0.00017171,2]
[373026691,1752843042720,-619.84,0.00017171,2]
[373026694,1752843042729,-460.0,0.00017171,2]
[373026697,1752843042739,-460.0,0.00017171,2]
[373026700,1752843042748,-460.0,0.00017171,2]
[373026703,1752843042757,-1832.88,0.00017171,2]
[373026706,1752843042766,-1860.42,0.00017171,2]
[373026708,1752843042776,-460.0,0.00017171,2]
[373026710,1752843042785,-1589.36,0.00017171,2]
[373026712,1752843042795,-460.0,0.00017171,2]
[373026714,1752843042804,-460.0,0.00017171,2]
[373026716,1752843042814,-460.0,0.00017171,2]
[373026718,1752843042823,-1487.84,0.00017171,2]
[373026722,1752843042832,-460.0,0.00017171,2]
[373026725,1752843042842,-460.0,0.00017171,2]
[373026728,1752843042851,-460.0,0.00017171,2]
[373026732,1752843042860,-460.0,0.00017171,2]
[373026735,1752843042869,-520.78,0.00017171,2]
[373026738,1752843042883,-460.0,0.00017172,2]
[373026741,1752843042892,-461.12344038,0.00017172,2]
[373026744,1752843042901,-460.0,0.00017172,2]
[373026747,1752843042910,-405.24582769,0.00017172,2]
[373026750,1752843042921,-460.0,0.00017172,2]
[373026754,1752843042930,-460.0,0.00017172,2]
[373026756,1752843042939,-460.0,0.00017172,2]
[373026758,1752843042949,-460.0,0.00017172,2]
[373026760,1752843042966,-500.0,0.00017172,2]